[Event "Titled Tuesday Blitz February 07 Late 2023"]
[White "Yedidia, Daniel"]
[Black "Alfaro, William"]
[WhiteFideId "30905907"]
[BlackFideId "6100457"]
[WhiteElo "2041"]
[BlackElo "2134"]
[Result "1/2-1/2"]
[Round "07"]
[TimeControl "180+2"]
[Date "2023.02.07"]
[WhiteClock "0:00:25"]
[BlackClock "0:00:49"]

1. Nf3 {[%clk 0:03:00]}  Nf6 {[%clk 0:02:58]} 2. d4 {[%clk 0:02:58]}  g6 {[%clk 0:02:57]} 3. c4 {[%clk 0:02:57]}  Bg7 {[%clk 0:02:55]} 4. Nc3 {[%clk 0:02:58]}  d6 {[%clk 0:02:55]} 5. e4 {[%clk 0:02:54]}  O-O {[%clk 0:02:56]} 6. Be2 {[%clk 0:02:50]}  e5 {[%clk 0:02:56]} 7. Be3 {[%clk 0:02:49]}  Ng4 {[%clk 0:02:53]} 8. Bg5 {[%clk 0:02:48]}  f6 {[%clk 0:02:54]} 9. Bh4 {[%clk 0:02:49]}  Nc6 {[%clk 0:02:54]} 10. h3 {[%clk 0:02:44]}  Nh6 {[%clk 0:02:53]} 11. dxe5 {[%clk 0:02:43]}  Nxe5 {[%clk 0:02:48]} 12. Nxe5 {[%clk 0:02:43]}  dxe5 {[%clk 0:02:49]} 13. Qxd8 {[%clk 0:02:42]}  Rxd8 {[%clk 0:02:48]} 14. Nd5 {[%clk 0:02:43]}  g5 {[%clk 0:02:45]} 15. Nxc7 {[%clk 0:02:42]}  gxh4 {[%clk 0:02:18]} 16. Nxa8 {[%clk 0:02:42]}  Bd7 {[%clk 0:02:18]} 17. Nc7 {[%clk 0:02:42]}  Bc6 {[%clk 0:02:19]} 18. Nd5 {[%clk 0:02:42]}  Nf7 {[%clk 0:02:17]} 19. O-O-O {[%clk 0:02:40]}  Kf8 {[%clk 0:02:14]} 20. Kc2 {[%clk 0:02:36]}  Ng5 {[%clk 0:02:08]} 21. Nc3 {[%clk 0:02:23]}  Rc8 {[%clk 0:02:04]} 22. Bd3 {[%clk 0:02:14]}  Ne6 {[%clk 0:02:01]} 23. Rhe1 {[%clk 0:02:08]}  Nd4+ {[%clk 0:01:56]} 24. Kb1 {[%clk 0:02:08]}  Bh6 {[%clk 0:01:55]} 25. Ne2 {[%clk 0:01:59]}  Ne6 {[%clk 0:01:54]} 26. Bc2 {[%clk 0:01:55]}  Kf7 {[%clk 0:01:49]} 27. Rd6 {[%clk 0:01:47]}  Bf8 {[%clk 0:01:49]} 28. Rd2 {[%clk 0:01:40]}  Bc5 {[%clk 0:01:47]} 29. Ng1 {[%clk 0:01:29]}  Bb4 {[%clk 0:01:45]} 30. Red1 {[%clk 0:01:27]}  Bxd2 {[%clk 0:01:45]} 31. Rxd2 {[%clk 0:01:28]}  Rg8 {[%clk 0:01:44]} 32. f3 {[%clk 0:01:25]}  Nf4 {[%clk 0:01:43]} 33. b4 {[%clk 0:01:22]}  Rxg2 {[%clk 0:01:35]} 34. Rxg2 {[%clk 0:01:16]}  Nxg2 {[%clk 0:01:36]} 35. b5 {[%clk 0:01:16]}  Bd7 {[%clk 0:01:35]} 36. a4 {[%clk 0:01:15]}  Ke7 {[%clk 0:01:36]} 37. c5 {[%clk 0:01:15]}  Be6 {[%clk 0:01:35]} 38. Kc1 {[%clk 0:01:14]}  Ne3 {[%clk 0:01:35]} 39. Bd3 {[%clk 0:01:13]}  Bb3 {[%clk 0:01:32]} 40. Kd2 {[%clk 0:01:10]}  Ng2 {[%clk 0:01:30]} 41. a5 {[%clk 0:01:08]}  Nf4 {[%clk 0:01:29]} 42. Bf1 {[%clk 0:01:07]}  Kd7 {[%clk 0:01:28]} 43. Kc3 {[%clk 0:01:02]}  Be6 {[%clk 0:01:28]} 44. Kd2 {[%clk 0:01:02]}  Kc7 {[%clk 0:01:28]} 45. Ke3 {[%clk 0:01:03]}  a6 {[%clk 0:01:28]} 46. bxa6 {[%clk 0:01:01]}  bxa6 {[%clk 0:01:29]} 47. Bxa6 {[%clk 0:01:01]}  Kc6 {[%clk 0:01:29]} 48. Bf1 {[%clk 0:01:00]}  Kxc5 {[%clk 0:01:30]} 49. Kd2 {[%clk 0:00:56]}  Bc8 {[%clk 0:01:26]} 50. Kc3 {[%clk 0:00:55]}  f5 {[%clk 0:01:24]} 51. exf5 {[%clk 0:00:51]}  Bxf5 {[%clk 0:01:25]} 52. Kb3 {[%clk 0:00:50]}  Be6+ {[%clk 0:01:24]} 53. Kc3 {[%clk 0:00:49]}  Bd5 {[%clk 0:01:24]} 54. Bd3 {[%clk 0:00:45]}  Be6 {[%clk 0:01:20]} 55. Bf1 {[%clk 0:00:38]}  Bf5 {[%clk 0:01:20]} 56. Kd2 {[%clk 0:00:38]}  Ne6 {[%clk 0:01:19]} 57. Ke3 {[%clk 0:00:39]}  Nd4 {[%clk 0:01:19]} 58. f4 {[%clk 0:00:38]}  e4 {[%clk 0:01:14]} 59. Bg2 {[%clk 0:00:30]}  Nc2+ {[%clk 0:01:14]} 60. Kd2 {[%clk 0:00:29]}  Nb4 {[%clk 0:01:14]} 61. Ke3 {[%clk 0:00:29]}  Nd5+ {[%clk 0:01:13]} 62. Kf2 {[%clk 0:00:29]}  Nxf4 {[%clk 0:01:13]} 63. Bf1 {[%clk 0:00:30]}  Nd3+ {[%clk 0:01:11]} 64. Ke3 {[%clk 0:00:30]}  Kb5 {[%clk 0:01:11]} 65. Ne2 {[%clk 0:00:29]}  Kxa5 {[%clk 0:01:10]} 66. Nd4 {[%clk 0:00:27]}  Bg6 {[%clk 0:01:10]} 67. Bg2 {[%clk 0:00:26]}  Nc5 {[%clk 0:01:08]} 68. Nc6+ {[%clk 0:00:26]}  Kb5 {[%clk 0:01:07]} 69. Ne5 {[%clk 0:00:26]}  Bf5 {[%clk 0:01:05]} 70. Nf7 {[%clk 0:00:24]}  Kb4 {[%clk 0:01:01]} 71. Ng5 {[%clk 0:00:25]}  Kc3 {[%clk 0:01:00]} 72. Kf4 {[%clk 0:00:21]}  Bg6 {[%clk 0:00:57]} 73. Nxe4+ {[%clk 0:00:22]}  Nxe4 {[%clk 0:00:54]} 74. Bxe4 {[%clk 0:00:23]}  Bxe4 {[%clk 0:00:49]} 75. Kxe4 {[%clk 0:00:24]}  Kd2 {[%clk 0:00:49]} 76. Kf4 {[%clk 0:00:24]}  Kd3 {[%clk 0:00:48]} 77. Kg4 {[%clk 0:00:24]}  Ke4 {[%clk 0:00:48]} 78. Kxh4 {[%clk 0:00:24]}  Kf5 {[%clk 0:00:49]} 79. Kh5 {[%clk 0:00:25]} 1/2-1/2


[Site "https://www.chess.com"]

[Event "Titled Tuesday Blitz February 07 Late 2023"]
[White "Rose, Felix"]
[Black "Reprintsev, Alexander"]
[WhiteFideId "5105722"]
[BlackFideId "14100541"]
[WhiteElo "2091"]
[BlackElo "2253"]
[Result "0-1"]
[Round "07"]
[TimeControl "180+2"]
[Date "2023.02.07"]
[WhiteClock "0:02:03"]
[BlackClock "0:02:06"]

1. e4 {[%clk 0:02:55]}  d5 {[%clk 0:02:59]} 2. exd5 {[%clk 0:02:55]}  Qxd5 {[%clk 0:02:59]} 3. Nc3 {[%clk 0:02:55]}  Qa5 {[%clk 0:02:55]} 4. d4 {[%clk 0:02:55]}  Nf6 {[%clk 0:02:53]} 5. Bd2 {[%clk 0:02:54]}  Bg4 {[%clk 0:02:53]} 6. Nf3 {[%clk 0:02:53]}  e6 {[%clk 0:02:45]} 7. h3 {[%clk 0:02:53]}  Bxf3 {[%clk 0:02:43]} 8. Qxf3 {[%clk 0:02:53]}  c6 {[%clk 0:02:42]} 9. Bc4 {[%clk 0:02:51]}  Nbd7 {[%clk 0:02:42]} 10. Qg3 {[%clk 0:02:36]}  Nb6 {[%clk 0:02:12]} 11. Nb5 {[%clk 0:02:16]}  Qxd2+ {[%clk 0:02:08]} 12. Kxd2 {[%clk 0:02:14]}  Ne4+ {[%clk 0:02:09]} 13. Kd3 {[%clk 0:02:09]}  Nxg3 {[%clk 0:02:09]} 14. fxg3 {[%clk 0:02:05]}  cxb5 {[%clk 0:02:08]} 15. Bxb5+ {[%clk 0:02:03]}  Nd7 {[%clk 0:02:06]} 0-1


[Site "https://www.chess.com"]

[Event "Titled Tuesday Blitz February 07 Late 2023"]
[White "Olsson, William"]
[Black "Dauner, Benedikt"]
[WhiteFideId "1741721"]
[BlackFideId "16225899"]
[WhiteElo "2355"]
[BlackElo "2400"]
[Result "0-1"]
[Round "07"]
[TimeControl "180+2"]
[Date "2023.02.07"]
[WhiteClock "0:00:08"]
[BlackClock "0:00:37"]

1. c4 {[%clk 0:02:58]}  c5 {[%clk 0:03:00]} 2. g3 {[%clk 0:02:57]}  g6 {[%clk 0:03:01]} 3. Bg2 {[%clk 0:02:58]}  Bg7 {[%clk 0:03:01]} 4. Nf3 {[%clk 0:02:58]}  Nc6 {[%clk 0:03:01]} 5. O-O {[%clk 0:02:59]}  d6 {[%clk 0:03:01]} 6. Nc3 {[%clk 0:02:59]}  Bxc3 {[%clk 0:03:01]} 7. bxc3 {[%clk 0:02:58]}  Qd7 {[%clk 0:03:01]} 8. d4 {[%clk 0:02:58]}  b6 {[%clk 0:03:01]} 9. e4 {[%clk 0:02:54]}  e5 {[%clk 0:02:57]} 10. a4 {[%clk 0:02:30]}  f6 {[%clk 0:02:54]} 11. a5 {[%clk 0:02:30]}  Nxa5 {[%clk 0:02:51]} 12. dxe5 {[%clk 0:02:27]}  dxe5 {[%clk 0:02:49]} 13. Qe2 {[%clk 0:02:18]}  Qe6 {[%clk 0:02:45]} 14. Nd2 {[%clk 0:02:17]}  Ba6 {[%clk 0:02:42]} 15. f4 {[%clk 0:02:11]}  Ne7 {[%clk 0:02:33]} 16. f5 {[%clk 0:02:03]}  Qf7 {[%clk 0:02:27]} 17. fxg6 {[%clk 0:01:55]}  hxg6 {[%clk 0:02:28]} 18. g4 {[%clk 0:01:52]}  g5 {[%clk 0:02:22]} 19. Qf2 {[%clk 0:01:30]}  Rh6 {[%clk 0:02:04]} 20. Nf3 {[%clk 0:01:22]}  Qg7 {[%clk 0:01:42]} 21. Rxa5 {[%clk 0:01:21]}  bxa5 {[%clk 0:01:41]} 22. Qxc5 {[%clk 0:01:21]}  Rc8 {[%clk 0:01:35]} 23. Qxa5 {[%clk 0:01:16]}  Bxc4 {[%clk 0:01:35]} 24. Rd1 {[%clk 0:01:12]}  Nc6 {[%clk 0:01:16]} 25. Qa4 {[%clk 0:01:05]}  Be2 {[%clk 0:01:12]} 26. Rd6 {[%clk 0:01:00]}  Qc7 {[%clk 0:01:10]} 27. Ba3 {[%clk 0:00:51]}  Qb6+ {[%clk 0:01:04]} 28. Kh1 {[%clk 0:00:40]}  Kf7 {[%clk 0:00:55]} 29. Qc2 {[%clk 0:00:16]}  Bxf3 {[%clk 0:00:45]} 30. Bxf3 {[%clk 0:00:17]}  Rch8 {[%clk 0:00:45]} 31. Rd7+ {[%clk 0:00:14]}  Kg6 {[%clk 0:00:43]} 32. Rd2 {[%clk 0:00:14]}  Qe3 {[%clk 0:00:40]} 33. Rf2 {[%clk 0:00:08]}  Qe1+ {[%clk 0:00:37]} 0-1


[Site "https://www.chess.com"]

[Event "Titled Tuesday Blitz February 07 Late 2023"]
[White "Cueto, Jonny"]
[Black "Sonnenschein, Philipp"]
[WhiteFideId "3300145"]
[BlackFideId "16250877"]
[WhiteElo "2122"]
[BlackElo "2224"]
[Result "1-0"]
[Round "07"]
[TimeControl "180+2"]
[Date "2023.02.07"]
[WhiteClock "0:00:07"]
[BlackClock "0:00:28"]

1. d4 {[%clk 0:02:55]}  Nf6 {[%clk 0:02:59]} 2. Bf4 {[%clk 0:02:54]}  d5 {[%clk 0:02:59]} 3. e3 {[%clk 0:02:52]}  c5 {[%clk 0:02:58]} 4. Nf3 {[%clk 0:02:52]}  Nc6 {[%clk 0:02:58]} 5. Nbd2 {[%clk 0:02:52]}  cxd4 {[%clk 0:02:55]} 6. exd4 {[%clk 0:02:53]}  Bf5 {[%clk 0:02:54]} 7. c3 {[%clk 0:02:51]}  e6 {[%clk 0:02:54]} 8. Ne5 {[%clk 0:02:52]}  Bd6 {[%clk 0:02:48]} 9. Ndf3 {[%clk 0:02:51]}  O-O {[%clk 0:02:47]} 10. Bd3 {[%clk 0:02:48]}  Re8 {[%clk 0:02:39]} 11. O-O {[%clk 0:02:39]}  Ne4 {[%clk 0:02:32]} 12. Nd2 {[%clk 0:02:36]}  Bxe5 {[%clk 0:02:27]} 13. Bxe5 {[%clk 0:02:31]}  Nxc3 {[%clk 0:02:23]} 14. Qf3 {[%clk 0:02:03]}  Bxd3 {[%clk 0:02:05]} 15. Qxd3 {[%clk 0:02:04]}  Na4 {[%clk 0:01:59]} 16. b3 {[%clk 0:01:47]}  Nxe5 {[%clk 0:01:55]} 17. dxe5 {[%clk 0:01:41]}  Nc5 {[%clk 0:01:55]} 18. Qg3 {[%clk 0:01:36]}  Rc8 {[%clk 0:01:52]} 19. f4 {[%clk 0:01:36]}  g6 {[%clk 0:01:47]} 20. Nf3 {[%clk 0:01:30]}  Ne4 {[%clk 0:01:46]} 21. Qh3 {[%clk 0:01:27]}  Qb6+ {[%clk 0:01:45]} 22. Kh1 {[%clk 0:01:21]}  Nf2+ {[%clk 0:01:43]} 23. Rxf2 {[%clk 0:01:21]}  Qxf2 {[%clk 0:01:44]} 24. Qh6 {[%clk 0:01:15]}  Rc2 {[%clk 0:01:32]} 25. Rg1 {[%clk 0:01:07]}  Qe2 {[%clk 0:01:10]} 26. h4 {[%clk 0:00:28]}  Rec8 {[%clk 0:01:05]} 27. h5 {[%clk 0:00:18]}  Rc1 {[%clk 0:00:58]} 28. hxg6 {[%clk 0:00:18]}  hxg6 {[%clk 0:00:52]} 29. Qg5 {[%clk 0:00:09]}  Rxg1+ {[%clk 0:00:50]} 30. Kxg1 {[%clk 0:00:10]}  Rc1+ {[%clk 0:00:45]} 31. Kh2 {[%clk 0:00:11]}  Qf2 {[%clk 0:00:31]} 32. Qd8+ {[%clk 0:00:10]}  Kh7 {[%clk 0:00:30]} 33. Ng5+ {[%clk 0:00:07]}  Kg7 {[%clk 0:00:29]} 34. Qf6+ {[%clk 0:00:07]}  Kh6 {[%clk 0:00:28]} 35. Qh8# {[%clk 0:00:07]} 1-0


[Site "https://www.chess.com"]

[Event "Titled Tuesday Blitz February 07 Late 2023"]
[White "Jimenez Almeida, Luis David"]
[Black "Jeziel_Vale"]
[WhiteFideId "22242244"]
[WhiteElo "2242"]
[BlackElo "2276"]
[Result "1-0"]
[Round "07"]
[TimeControl "180+2"]
[Date "2023.02.07"]
[WhiteClock "0:02:38"]
[BlackClock "0:01:53"]

1. e4 {[%clk 0:03:00]}  c5 {[%clk 0:02:59]} 2. Nc3 {[%clk 0:03:00]}  a6 {[%clk 0:02:58]} 3. Nge2 {[%clk 0:02:59]}  g6 {[%clk 0:02:57]} 4. d4 {[%clk 0:02:57]}  cxd4 {[%clk 0:02:57]} 5. Qxd4 {[%clk 0:02:57]}  Nf6 {[%clk 0:02:57]} 6. e5 {[%clk 0:02:56]}  Nc6 {[%clk 0:02:57]} 7. Qf4 {[%clk 0:02:56]}  Qc7 {[%clk 0:02:39]} 8. exf6 {[%clk 0:02:55]}  Qxf4 {[%clk 0:02:09]} 9. Bxf4 {[%clk 0:02:53]}  e5 {[%clk 0:02:04]} 10. Nd5 {[%clk 0:02:45]}  Bd6 {[%clk 0:02:00]} 11. Bh6 {[%clk 0:02:40]}  b5 {[%clk 0:01:55]} 12. O-O-O {[%clk 0:02:39]}  Bb8 {[%clk 0:01:53]} 13. Nb6 {[%clk 0:02:38]} 1-0


[Site "https://www.chess.com"]

[Event "Titled Tuesday Blitz February 07 Late 2023"]
[White "Fiorito, Francisco"]
[Black "Talbi, Chafik"]
[WhiteFideId "180165"]
[BlackFideId "7903715"]
[WhiteElo "2305"]
[BlackElo "2224"]
[Result "1-0"]
[Round "07"]
[TimeControl "180+2"]
[Date "2023.02.07"]
[WhiteClock "0:01:06"]
[BlackClock "0:00:17"]

1. d4 {[%clk 0:03:00]}  d6 {[%clk 0:01:58]} 2. e4 {[%clk 0:02:59]}  e5 {[%clk 0:01:57]} 3. dxe5 {[%clk 0:02:51]}  dxe5 {[%clk 0:01:58]} 4. Qxd8+ {[%clk 0:02:51]}  Kxd8 {[%clk 0:01:58]} 5. Bc4 {[%clk 0:02:52]}  f6 {[%clk 0:01:57]} 6. Nc3 {[%clk 0:02:49]}  c6 {[%clk 0:01:56]} 7. a4 {[%clk 0:02:48]}  Bd6 {[%clk 0:01:56]} 8. f3 {[%clk 0:02:48]}  Ke7 {[%clk 0:01:55]} 9. Nge2 {[%clk 0:02:47]}  Be6 {[%clk 0:01:55]} 10. Bxe6 {[%clk 0:02:46]}  Kxe6 {[%clk 0:01:54]} 11. Be3 {[%clk 0:02:47]}  Nd7 {[%clk 0:01:53]} 12. a5 {[%clk 0:02:44]}  Bc5 {[%clk 0:01:51]} 13. Bxc5 {[%clk 0:02:41]}  Nxc5 {[%clk 0:01:51]} 14. Kf2 {[%clk 0:02:40]}  Ne7 {[%clk 0:01:48]} 15. Rhd1 {[%clk 0:02:36]}  Rhd8 {[%clk 0:01:47]} 16. Rxd8 {[%clk 0:02:35]}  Rxd8 {[%clk 0:01:47]} 17. Ke1 {[%clk 0:02:34]}  Nc8 {[%clk 0:01:43]} 18. b4 {[%clk 0:02:34]}  Na6 {[%clk 0:01:42]} 19. Rb1 {[%clk 0:02:33]}  Nd6 {[%clk 0:01:41]} 20. b5 {[%clk 0:02:05]}  cxb5 {[%clk 0:01:37]} 21. Nxb5 {[%clk 0:02:06]}  Nxb5 {[%clk 0:01:37]} 22. Rxb5 {[%clk 0:02:07]}  Rd7 {[%clk 0:01:35]} 23. Nc3 {[%clk 0:02:01]}  Kd6 {[%clk 0:01:34]} 24. Nd5 {[%clk 0:01:58]}  Kc6 {[%clk 0:01:31]} 25. c4 {[%clk 0:01:58]}  Nc5 {[%clk 0:01:30]} 26. Ke2 {[%clk 0:01:56]}  Ne6 {[%clk 0:01:22]} 27. Ke3 {[%clk 0:01:38]}  Nd4 {[%clk 0:01:21]} 28. Nb4+ {[%clk 0:01:37]}  Kc7 {[%clk 0:01:16]} 29. Rc5+ {[%clk 0:01:37]}  Kb8 {[%clk 0:01:06]} 30. a6 {[%clk 0:01:26]}  b6 {[%clk 0:01:02]} 31. Rd5 {[%clk 0:01:23]}  Kc7 {[%clk 0:00:54]} 32. f4 {[%clk 0:01:15]}  Nb3 {[%clk 0:00:44]} 33. fxe5 {[%clk 0:01:12]}  fxe5 {[%clk 0:00:44]} 34. Rxe5 {[%clk 0:01:13]}  Nc5 {[%clk 0:00:43]} 35. Nd5+ {[%clk 0:01:12]}  Kd6 {[%clk 0:00:37]} 36. Re8 {[%clk 0:01:12]}  Nxa6 {[%clk 0:00:36]} 37. Kd4 {[%clk 0:01:11]}  Nb4 {[%clk 0:00:28]} 38. Nxb4 {[%clk 0:01:09]}  Kc7+ {[%clk 0:00:19]} 39. Nd5+ {[%clk 0:01:07]}  Kb7 {[%clk 0:00:19]} 40. e5 {[%clk 0:01:07]}  Kc6 {[%clk 0:00:19]} 41. e6 {[%clk 0:01:07]}  Rb7 {[%clk 0:00:18]} 42. e7 {[%clk 0:01:06]}  Kd6 {[%clk 0:00:17]} 43. Rd8+ {[%clk 0:01:06]} 1-0


[Site "https://www.chess.com"]

[Event "Titled Tuesday Blitz February 07 Late 2023"]
[White "Tinmaz, Kerem"]
[Black "Ramirez Allo, Eduardo"]
[WhiteFideId "44559151"]
[BlackFideId "2224178"]
[WhiteElo "2177"]
[BlackElo "2274"]
[Result "0-1"]
[Round "07"]
[TimeControl "180+2"]
[Date "2023.02.07"]
[WhiteClock "0:00:02"]
[BlackClock "0:00:07"]

1. e4 {[%clk 0:03:00]}  c5 {[%clk 0:03:00]} 2. Nc3 {[%clk 0:03:00]}  a6 {[%clk 0:02:59]} 3. Nf3 {[%clk 0:03:00]}  d6 {[%clk 0:02:59]} 4. d4 {[%clk 0:02:53]}  cxd4 {[%clk 0:03:00]} 5. Nxd4 {[%clk 0:02:53]}  Nf6 {[%clk 0:03:00]} 6. Bg5 {[%clk 0:02:52]}  Nbd7 {[%clk 0:03:00]} 7. f4 {[%clk 0:02:50]}  Qc7 {[%clk 0:03:00]} 8. Qf3 {[%clk 0:02:49]}  h6 {[%clk 0:03:00]} 9. Bh4 {[%clk 0:02:47]}  g5 {[%clk 0:03:01]} 10. fxg5 {[%clk 0:02:36]}  hxg5 {[%clk 0:03:02]} 11. Bxg5 {[%clk 0:02:34]}  Qc5 {[%clk 0:03:02]} 12. Be3 {[%clk 0:02:20]}  Ne5 {[%clk 0:03:02]} 13. Qe2 {[%clk 0:02:03]}  Neg4 {[%clk 0:03:02]} 14. Nf5 {[%clk 0:01:39]}  Nxe3 {[%clk 0:02:40]} 15. Qxe3 {[%clk 0:01:40]}  Qb4 {[%clk 0:02:38]} 16. Bd3 {[%clk 0:00:52]}  Bxf5 {[%clk 0:02:10]} 17. exf5 {[%clk 0:00:47]}  Bh6 {[%clk 0:02:08]} 18. Qf3 {[%clk 0:00:38]}  Qxb2 {[%clk 0:02:03]} 19. O-O {[%clk 0:00:36]}  Kf8 {[%clk 0:01:59]} 20. Ne4 {[%clk 0:00:20]}  Bg7 {[%clk 0:01:37]} 21. Rab1 {[%clk 0:00:08]}  Qe5 {[%clk 0:01:35]} 22. h3 {[%clk 0:00:05]}  Rb8 {[%clk 0:01:06]} 23. Nxf6 {[%clk 0:00:03]}  Bxf6 {[%clk 0:01:07]} 24. Rxb7 {[%clk 0:00:03]}  Rc8 {[%clk 0:00:32]} 25. Kh1 {[%clk 0:00:01]}  Qd4 {[%clk 0:00:20]} 26. Rbb1 {[%clk 0:00:01]}  Be5 {[%clk 0:00:20]} 27. Rbe1 {[%clk 0:00:01]}  f6 {[%clk 0:00:17]} 28. Re4 {[%clk 0:00:02]}  Qc3 {[%clk 0:00:12]} 29. Rg4 {[%clk 0:00:03]}  Qd2 {[%clk 0:00:08]} 30. Qd5 {[%clk 0:00:02]}  Rxh3+ {[%clk 0:00:07]} 31. Kg1 {[%clk 0:00:01]}  Bh2+ {[%clk 0:00:06]} 32. Kh1 {[%clk 0:00:01]}  Bg3+ {[%clk 0:00:04]} 33. Kg1 {[%clk 0:00:02]}  Bh2+ {[%clk 0:00:04]} 34. Kh1 {[%clk 0:00:02]}  Be5+ {[%clk 0:00:05]} 35. Kg1 {[%clk 0:00:03]}  Rh8 {[%clk 0:00:05]} 36. Rf3 {[%clk 0:00:02]}  Qh6 {[%clk 0:00:06]} 37. Kf1 {[%clk 0:00:02]}  Qc1+ {[%clk 0:00:05]} 38. Ke2 {[%clk 0:00:02]}  Qh1 {[%clk 0:00:04]} 39. Rfg3 {[%clk 0:00:02]}  Bxg3 {[%clk 0:00:03]} 40. Rxg3 {[%clk 0:00:02]}  Qh5+ {[%clk 0:00:04]} 41. Qf3 {[%clk 0:00:02]}  Qf7 {[%clk 0:00:04]} 42. Qg4 {[%clk 0:00:02]}  Rg8 {[%clk 0:00:04]} 43. Qxg8+ {[%clk 0:00:02]}  Qxg8 {[%clk 0:00:05]} 44. Rxg8+ {[%clk 0:00:02]}  Kxg8 {[%clk 0:00:06]} 45. Kd2 {[%clk 0:00:02]}  a5 {[%clk 0:00:06]} 46. c4 {[%clk 0:00:01]}  Kg7 {[%clk 0:00:06]} 47. Kc3 {[%clk 0:00:02]}  Kh6 {[%clk 0:00:06]} 48. Kd4 {[%clk 0:00:02]}  Kg5 {[%clk 0:00:07]} 49. Kd5 {[%clk 0:00:02]}  Rc5+ {[%clk 0:00:07]} 50. Ke6 {[%clk 0:00:03]}  Re5+ {[%clk 0:00:08]} 51. Kd7 {[%clk 0:00:03]}  Kf4 {[%clk 0:00:08]} 52. a4 {[%clk 0:00:02]}  Kg3 {[%clk 0:00:07]} 0-1


[Site "https://www.chess.com"]

[Event "Titled Tuesday Blitz February 07 Late 2023"]
[White "Vaglio Munoz, Jaime"]
[Black "Garcia Almaguer, Juan Manuel"]
[WhiteFideId "6500145"]
[BlackFideId "5110491"]
[WhiteElo "2174"]
[BlackElo "2090"]
[Result "0-1"]
[Round "07"]
[TimeControl "180+2"]
[Date "2023.02.07"]
[WhiteClock "0:00:13"]
[BlackClock "0:00:24"]

1. d4 {[%clk 0:03:00]}  Nf6 {[%clk 0:02:55]} 2. c4 {[%clk 0:03:00]}  e6 {[%clk 0:02:52]} 3. Nc3 {[%clk 0:02:56]}  Bb4 {[%clk 0:02:48]} 4. Bd2 {[%clk 0:02:56]}  b6 {[%clk 0:02:45]} 5. f3 {[%clk 0:02:54]}  c5 {[%clk 0:02:38]} 6. e3 {[%clk 0:02:49]}  Bb7 {[%clk 0:02:35]} 7. Nge2 {[%clk 0:02:47]}  O-O {[%clk 0:02:34]} 8. a3 {[%clk 0:02:46]}  Bxc3 {[%clk 0:02:34]} 9. Bxc3 {[%clk 0:02:45]}  d5 {[%clk 0:02:34]} 10. dxc5 {[%clk 0:02:42]}  bxc5 {[%clk 0:02:34]} 11. Nf4 {[%clk 0:02:34]}  Nbd7 {[%clk 0:02:11]} 12. Be2 {[%clk 0:02:33]}  d4 {[%clk 0:02:04]} 13. Bd2 {[%clk 0:02:17]}  e5 {[%clk 0:02:02]} 14. Nh3 {[%clk 0:02:09]}  e4 {[%clk 0:01:42]} 15. fxe4 {[%clk 0:02:02]}  Nxe4 {[%clk 0:01:31]} 16. O-O {[%clk 0:01:59]}  Ne5 {[%clk 0:01:28]} 17. Nf4 {[%clk 0:01:36]}  Rb8 {[%clk 0:01:21]} 18. b4 {[%clk 0:01:19]}  d3 {[%clk 0:01:20]} 19. Bf3 {[%clk 0:01:18]}  Nxc4 {[%clk 0:01:20]} 20. Bxe4 {[%clk 0:01:00]}  Bxe4 {[%clk 0:01:21]} 21. bxc5 {[%clk 0:00:58]}  Rb2 {[%clk 0:01:20]} 22. Rf2 {[%clk 0:00:57]}  Qc7 {[%clk 0:00:35]} 23. Rc1 {[%clk 0:00:49]}  Nxa3 {[%clk 0:00:35]} 24. Bb4 {[%clk 0:00:45]}  Nc2 {[%clk 0:00:33]} 25. Nxd3 {[%clk 0:00:37]}  Bxd3 {[%clk 0:00:29]} 26. Qxd3 {[%clk 0:00:37]}  Nxb4 {[%clk 0:00:29]} 27. Qd4 {[%clk 0:00:33]}  Rxf2 {[%clk 0:00:29]} 28. Kxf2 {[%clk 0:00:30]}  Nc6 {[%clk 0:00:28]} 29. Qa4 {[%clk 0:00:28]}  Rd8 {[%clk 0:00:25]} 30. Rc2 {[%clk 0:00:27]}  h5 {[%clk 0:00:25]} 31. g3 {[%clk 0:00:26]}  Ne5 {[%clk 0:00:25]} 32. c6 {[%clk 0:00:23]}  Ng4+ {[%clk 0:00:25]} 33. Ke2 {[%clk 0:00:20]}  Re8 {[%clk 0:00:25]} 34. Rc3 {[%clk 0:00:19]}  Nxh2 {[%clk 0:00:23]} 35. Qf4 {[%clk 0:00:16]}  Qxf4 {[%clk 0:00:22]} 36. gxf4 {[%clk 0:00:17]}  Rc8 {[%clk 0:00:22]} 37. Kf2 {[%clk 0:00:16]}  Ng4+ {[%clk 0:00:23]} 38. Kf3 {[%clk 0:00:16]}  Kf8 {[%clk 0:00:24]} 39. e4 {[%clk 0:00:16]}  Ke7 {[%clk 0:00:25]} 40. e5 {[%clk 0:00:17]}  g6 {[%clk 0:00:25]} 41. Ke4 {[%clk 0:00:17]}  Ke6 {[%clk 0:00:26]} 42. Kd4 {[%clk 0:00:16]}  h4 {[%clk 0:00:25]} 43. Kc5 {[%clk 0:00:16]}  h3 {[%clk 0:00:26]} 44. Rxh3 {[%clk 0:00:16]}  g5 {[%clk 0:00:24]} 45. Rd3 {[%clk 0:00:15]}  gxf4 {[%clk 0:00:23]} 46. Rd7 {[%clk 0:00:14]}  Rxc6+ {[%clk 0:00:22]} 47. Kxc6 {[%clk 0:00:13]}  Nxe5+ {[%clk 0:00:23]} 48. Kc5 {[%clk 0:00:12]}  Nxd7+ {[%clk 0:00:23]} 49. Kd4 {[%clk 0:00:13]}  Kf5 {[%clk 0:00:24]} 0-1


[Site "https://www.chess.com"]

[Event "Titled Tuesday Blitz February 07 Late 2023"]
[White "Clawitter, Craig"]
[Black "Fernandez Siles, Luis"]
[WhiteFideId "2023105"]
[BlackFideId "2209420"]
[WhiteElo "2050"]
[BlackElo "2218"]
[Result "0-1"]
[Round "07"]
[TimeControl "180+2"]
[Date "2023.02.07"]
[WhiteClock "0:00:03"]
[BlackClock "0:00:24"]

1. e4 {[%clk 0:03:00]}  c5 {[%clk 0:02:59]} 2. Nf3 {[%clk 0:03:00]}  Nc6 {[%clk 0:02:59]} 3. d4 {[%clk 0:03:00]}  cxd4 {[%clk 0:03:00]} 4. Nxd4 {[%clk 0:03:01]}  Nf6 {[%clk 0:03:01]} 5. Nc3 {[%clk 0:03:00]}  e5 {[%clk 0:03:01]} 6. Ndb5 {[%clk 0:03:00]}  d6 {[%clk 0:03:02]} 7. Bg5 {[%clk 0:03:00]}  a6 {[%clk 0:03:02]} 8. Na3 {[%clk 0:02:59]}  b5 {[%clk 0:03:03]} 9. Bxf6 {[%clk 0:02:59]}  gxf6 {[%clk 0:03:03]} 10. Nd5 {[%clk 0:03:00]}  f5 {[%clk 0:03:03]} 11. Bd3 {[%clk 0:03:00]}  Be6 {[%clk 0:03:02]} 12. O-O {[%clk 0:03:00]}  Bg7 {[%clk 0:03:01]} 13. Qh5 {[%clk 0:03:01]}  f4 {[%clk 0:02:40]} 14. c4 {[%clk 0:03:00]}  Nd4 {[%clk 0:02:22]} 15. cxb5 {[%clk 0:02:53]}  O-O {[%clk 0:02:20]} 16. bxa6 {[%clk 0:02:46]}  f5 {[%clk 0:02:16]} 17. Rac1 {[%clk 0:01:55]}  Bxd5 {[%clk 0:02:15]} 18. exd5 {[%clk 0:01:54]}  e4 {[%clk 0:02:15]} 19. Bc4 {[%clk 0:01:49]}  f3 {[%clk 0:02:05]} 20. g3 {[%clk 0:01:34]}  Rf6 {[%clk 0:01:57]} 21. Qg5 {[%clk 0:01:15]}  Qf8 {[%clk 0:01:53]} 22. Nc2 {[%clk 0:01:07]}  Rg6 {[%clk 0:01:27]} 23. Qd2 {[%clk 0:01:00]}  Nxc2 {[%clk 0:01:12]} 24. Rxc2 {[%clk 0:00:57]}  Be5 {[%clk 0:01:12]} 25. Rfc1 {[%clk 0:00:47]}  f4 {[%clk 0:00:52]} 26. Bb5 {[%clk 0:00:28]}  e3 {[%clk 0:00:52]} 27. Qd3 {[%clk 0:00:16]}  exf2+ {[%clk 0:00:52]} 28. Rxf2 {[%clk 0:00:11]}  fxg3 {[%clk 0:00:47]} 29. Rxf3 {[%clk 0:00:12]}  gxh2+ {[%clk 0:00:47]} 30. Kh1 {[%clk 0:00:12]}  Qh6 {[%clk 0:00:45]} 31. Rcf1 {[%clk 0:00:04]}  Kh8 {[%clk 0:00:30]} 32. Rh3 {[%clk 0:00:03]}  Rag8 {[%clk 0:00:24]} 0-1


[Site "https://www.chess.com"]